fUSD/lending_fUSD_20260524
["ID","MTS","AMOUNT","RATE_DAILY","PERIOD"]
[422889492,1779579039000,-1934.38338736,0.00020946,2]
[422889507,1779579039000,-178.0,0.00021,2]
[422889508,1779579039000,-454.0,0.00021,2]
[422889494,1779579039000,-213.2,0.00021,2]
[422889505,1779579039000,-1156.0,0.00021,2]
[422889503,1779579039000,-348.0,0.00021,2]
[422889501,1779579039000,-3414.02018094,0.00021,7]
[422889497,1779579039000,-199.64971926,0.00021,2]
[422889499,1779579039000,-1209.67601528,0.00021,2]
[422889378,1779579039000,-170.13,0.00019891,2]
[422889464,1779579039000,-1865.36488656,0.00020398,2]
[422889454,1779579039000,-176.00882037,0.0002,2]
[422889478,1779579039000,-150.0,0.0002058,2]
[422889452,1779579039000,-176.00882037,0.0002,2]
[422889392,1779579039000,-1554.11684472,0.0002,2]
[422889450,1779579039000,-176.00882037,0.0002,2]
[422889395,1779579039000,-178.82721296,0.0002,2]
[422889407,1779579039000,-1312.02572133,0.0002,2]
[422889409,1779579039000,-157.41451163,0.0002,2]
[422889411,1779579039000,-507.04253053,0.0002,10]
[422889413,1779579039000,-200.0,0.0002,2]
[422889397,1779579039000,-1491.49070233,0.0002,5]
[422889399,1779579039000,-25929.05197392,0.0002,2]
[422889420,1779579039000,-13096.17900499,0.0002,2]
[422889403,1779579039000,-3325.74888528,0.0002,20]
[422889401,1779579039000,-3950.0,0.0002,2]
[422889418,1779579039000,-52343.71422974,0.0002,2]
[422889416,1779579039000,-1059.06551853,0.0002,2]
[422889405,1779579039000,-26783.27703297,0.0002,2]
[422889446,1779579039000,-176.00882037,0.0002,2]
[422889448,1779579039000,-176.00882037,0.0002,2]
[422889424,1779579039000,-152.0,0.0002,2]
[422889439,1779579039000,-162.55723365,0.0002,2]
[422889437,1779579039000,-150.0,0.0002,20]
[422889443,1779579039000,-443.0,0.0002,2]
[422889441,1779579039000,-170.0,0.0002,2]
[422889434,1779579039000,-454.0,0.0002,2]
[422889428,1779579039000,-1156.0,0.0002,2]
[422889426,1779579039000,-348.0,0.0002,2]
[422889422,1779579039000,-163.14860865,0.0002,14]
[422889432,1779579039000,-178.0,0.0002,2]
[422889430,1779579039000,-158.0,0.0002,2]
[422889544,1779579040000,-1352.0,0.00021918,2]
[422889549,1779579040000,-1352.0,0.00021918,2]
[422889548,1779579040000,-1352.0,0.00021918,2]
[422889547,1779579040000,-1352.0,0.00021918,2]
[422889546,1779579040000,-1352.0,0.00021918,2]
[422889551,1779579040000,-1352.0,0.00021918,2]
[422889545,1779579040000,-1352.0,0.00021918,2]
[422889553,1779579040000,-1352.0,0.00021918,2]
[422889542,1779579040000,-1352.0,0.00021918,2]
[422889552,1779579040000,-1352.0,0.00021918,2]
[422889550,1779579040000,-1352.0,0.00021918,2]
[422889554,1779579040000,-1352.0,0.00021918,2]
[422889555,1779579040000,-1358.33212555,0.00021918,2]
[422889579,1779579040000,-151.0,0.00022,2]
[422889560,1779579040000,-160.0,0.00022,2]
[422889557,1779579040000,-162.0,0.00022,2]
[422889559,1779579040000,-813.91266776,0.00022,7]
[422889563,1779579040000,-1156.0,0.00022,2]
[422889562,1779579040000,-348.0,0.00022,2]
[422889561,1779579040000,-300.0,0.00022,2]
[422889556,1779579040000,-563.63222322,0.00021999,2]
[422889564,1779579040000,-154.106102,0.00022,2]
[422889565,1779579040000,-154.106102,0.00022,2]
[422889567,1779579040000,-154.106102,0.00022,2]
[422889566,1779579040000,-154.106102,0.00022,2]
[422889569,1779579040000,-151.0,0.00022,2]
[422889543,1779579040000,-1352.0,0.00021918,2]
[422889558,1779579040000,-165953.18308373,0.00022,4]
[422889539,1779579040000,-1352.0,0.00021918,2]
[422889515,1779579040000,-6469.39,0.0002137,2]
[422889540,1779579040000,-1352.0,0.00021918,2]
[422889513,1779579040000,-919.0444426,0.00021358,2]
[422889580,1779579040000,-151.0,0.00022,2]
[422889510,1779579040000,-170.0,0.00021,2]
[422889514,1779579040000,-626.2373088,0.00021358,2]
[422889512,1779579040000,-443.0,0.00021,2]
[422889524,1779579040000,-150.0,0.00021644,2]
[422889516,1779579040000,-862.77,0.00021374,2]
[422889525,1779579040000,-150.0,0.00021644,2]
[422889518,1779579040000,-200.0,0.00021494,2]
[422889519,1779579040000,-2005.9555727,0.00021494,2]
[422889527,1779579040000,-1990.4,0.00021658,2]
[422889517,1779579040000,-2000.0,0.00021442,7]
[422889523,1779579040000,-150.0,0.00021644,2]
[422889538,1779579040000,-1352.0,0.00021918,2]
[422889526,1779579040000,-207.5035293,0.00021644,2]
[422889522,1779579040000,-150.0,0.00021584,2]
[422889521,1779579040000,-225.27510475,0.000215,2]
[422889528,1779579040000,-321.10694644,0.00021773,2]
[422889529,1779579040000,-900.0,0.000219,7]
[422889533,1779579040000,-1352.0,0.00021918,2]
[422889536,1779579040000,-1352.0,0.00021918,2]
[422889531,1779579040000,-3077.96,0.00021918,2]
[422889532,1779579040000,-1352.0,0.00021918,2]
[422889535,1779579040000,-1352.0,0.00021918,2]
[422889541,1779579040000,-1352.0,0.00021918,2]
[422889530,1779579040000,-500.0,0.000219,2]
[422889537,1779579040000,-1352.0,0.00021918,2]
[422889534,1779579040000,-1352.0,0.00021918,2]
[422889520,1779579040000,-58368.0558845,0.000215,2]
[422889568,1779579040000,-178.0,0.00022,2]
[422889574,1779579040000,-2808.571535,0.00022,2]
[422889572,1779579040000,-696.937149,0.00022,2]
[422889609,1779579040000,-363.764462,0.000222,2]
[422889607,1779579040000,-243.80072544,0.0002211,2]
[422889608,1779579040000,-363.764462,0.000222,2]
[422889618,1779579040000,-152.35107503,0.00022389,4]
[422889619,1779579040000,-153.47162739,0.00022389,4]
[422889610,1779579040000,-363.764462,0.000222,2]
[422889612,1779579040000,-5660.44,0.00022222,7]
[422889613,1779579040000,-621.43653195,0.00022257,2]
[422889611,1779579040000,-363.764462,0.000222,2]
[422889617,1779579040000,-152.75252402,0.00022389,4]
[422889616,1779579040000,-150.0,0.00022389,4]
[422889614,1779579040000,-2130.5,0.00022353,2]
[422889615,1779579040000,-170.13,0.00022377,2]
[422889606,1779579040000,-151.0,0.000221,2]
[422889621,1779579040000,-150.0,0.00022389,4]
[422889622,1779579040000,-150.0,0.00022389,4]
[422889620,1779579040000,-150.0,0.00022389,4]
[422889623,1779579040000,-150.0,0.00022389,4]
[422889625,1779579040000,-250.0,0.00022445,2]
[422889627,1779579040000,-263.3307155,0.00022445,2]
[422889624,1779579040000,-250.0,0.00022445,2]
[422889630,1779579040000,-150.0,0.00022445,2]
[422889570,1779579040000,-696.937149,0.00022,2]
[422889628,1779579040000,-150.0,0.00022445,2]
[422889629,1779579040000,-150.0,0.00022445,2]
[422889632,1779579040000,-150.0,0.00022445,2]
[422889633,1779579040000,-173.36278918,0.00022445,2]
[422889634,1779579040000,-500.0,0.00022445,2]
[422889631,1779579040000,-150.0,0.00022445,2]
[422889604,1779579040000,-151.0,0.000221,2]
[422889626,1779579040000,-250.0,0.00022445,2]
[422889602,1779579040000,-527.34048822,0.000221,7]
[422889605,1779579040000,-151.0,0.000221,2]
[422889575,1779579040000,-2808.571535,0.00022,2]
[422889576,1779579040000,-2808.571535,0.00022,2]
[422889578,1779579040000,-151.0,0.00022,2]
[422889577,1779579040000,-2808.571535,0.00022,2]
[422889571,1779579040000,-696.937149,0.00022,2]
[422889582,1779579040000,-269.618697,0.00022,2]
[422889583,1779579040000,-269.618697,0.00022,2]
[422889581,1779579040000,-454.0,0.00022,2]
[422889585,1779579040000,-269.618697,0.00022,2]
[422889589,1779579040000,-297.35364,0.00022,2]
[422889590,1779579040000,-170.0,0.00022,2]
[422889584,1779579040000,-269.618697,0.00022,2]
[422889587,1779579040000,-297.35364,0.00022,2]
[422889573,1779579040000,-696.937149,0.00022,2]
[422889586,1779579040000,-297.35364,0.00022,2]
[422889588,1779579040000,-297.35364,0.00022,2]
[422889600,1779579040000,-2080.17592889,0.00022042,2]
[422889598,1779579040000,-203.94573367,0.00022,3]
[422889601,1779579040000,-5206.40020726,0.00022062,2]
[422889599,1779579040000,-200.0,0.00022042,2]
[422889597,1779579040000,-443.0,0.00022,2]
[422889595,1779579040000,-151.0,0.00022,2]
[422889591,1779579040000,-151.0,0.00022,2]
[422889603,1779579040000,-151.0,0.000221,2]
[422889592,1779579040000,-151.0,0.00022,2]
[422889596,1779579040000,-151.0,0.00022,2]
[422889593,1779579040000,-151.0,0.00022,2]
[422889594,1779579040000,-151.0,0.00022,2]
[422889661,1779579041000,-5000.0,0.00023064,2]
[422889662,1779579041000,-200.0,0.00023138,2]
[422889664,1779579041000,-500.0,0.00023178,2]
[422889666,1779579041000,-5206.40020726,0.00023256,2]
[422889663,1779579041000,-2236.95670847,0.00023138,2]
[422889665,1779579041000,-5530.0,0.000232,3]
[422889668,1779579041000,-219.78656142,0.0002337,21]
[422889667,1779579041000,-523.0,0.00023325,7]
[422889673,1779579041000,-1990.4,0.00023627,2]
[422889669,1779579041000,-171.92,0.00023456,2]
[422889685,1779579041000,-282.0,0.00024,2]
[422889671,1779579041000,-5530.0,0.000235,5]
[422889672,1779579041000,-195.31,0.00023625,2]
[422889675,1779579041000,-591.0,0.00023655,7]
[422889687,1779579041000,-1156.0,0.00024,2]
[422889674,1779579041000,-150.0,0.00023633,4]
[422889686,1779579041000,-348.0,0.00024,2]
[422889680,1779579041000,-1416.71,0.000239,7]
[422889676,1779579041000,-318.0,0.00023655,7]
[422889678,1779579041000,-2319.72410669,0.00023686,2]
[422889659,1779579041000,-170.0,0.00023,2]
[422889670,1779579041000,-233.12534026,0.00023456,2]
[422889653,1779579041000,-210128.0,0.000229,2]
[422889646,1779579041000,-2157.14243826,0.0002259,2]
[422889657,1779579041000,-178.0,0.00023,2]
[422889635,1779579041000,-500.0,0.00022445,2]
[422889682,1779579041000,-500.0,0.00023942,2]
[422889636,1779579041000,-500.0,0.00022445,2]
[422889641,1779579041000,-2900.0,0.000225,15]
[422889640,1779579041000,-284.58525916,0.00022488,4]
[422889638,1779579041000,-500.0,0.00022445,2]
[422889639,1779579041000,-226.29850222,0.00022445,2]
[422889637,1779579041000,-500.0,0.00022445,2]
[422889643,1779579041000,-151.0,0.000225,2]
[422889647,1779579041000,-3659.31812104,0.000226,2]
[422889656,1779579041000,-1156.0,0.00023,2]
[422889644,1779579041000,-151.0,0.000225,2]
[422889645,1779579041000,-200.0,0.0002259,2]
[422889648,1779579041000,-2131.96,0.00022691,2]
[422889650,1779579041000,-35830.5,0.00022691,2]
[422889660,1779579041000,-443.0,0.00023,2]
[422889652,1779579041000,-531.16540748,0.0002271,2]
[422889649,1779579041000,-907.82,0.00022691,2]
[422889655,1779579041000,-348.0,0.00023,2]
[422889658,1779579041000,-454.0,0.00023,2]
[422889654,1779579041000,-2264.0,0.00023,5]
[422889651,1779579041000,-1416.71,0.000227,7]
[422889642,1779579041000,-36030.32987391,0.000225,2]
[422889684,1779579041000,-478.72,0.00023974,2]
[422889733,1779579041000,-468.49254296,0.00025,2]
[422889683,1779579041000,-478.75,0.00023974,2]
[422889708,1779579041000,-5206.40020726,0.00024449,2]
[422889706,1779579041000,-2130.5,0.00024324,2]
[422889709,1779579041000,-168.3853837,0.0002455,15]
[422889707,1779579041000,-478.75,0.00024374,2]
[422889716,1779579041000,-478.75,0.00024773,2]
[422889720,1779579041000,-1416.71,0.000249,7]
[422889718,1779579041000,-2494.55939288,0.00024782,2]
[422889719,1779579041000,-150.0,0.00024877,4]
[422889722,1779579041000,-172.09343008,0.000249,2]
[422889728,1779579041000,-296.22364265,0.00025,2]
[422889723,1779579041000,-400.9148028,0.000249,2]
[422889721,1779579041000,-1200.0,0.000249,9]
[422889724,1779579041000,-14880.32549329,0.000249,2]
[422889717,1779579041000,-200.0,0.00024782,2]
[422889725,1779579041000,-2902.39187184,0.000249,2]
[422889729,1779579041000,-1926203.58183429,0.00025,2]
[422889727,1779579041000,-151.71,0.00024968,7]
[422889726,1779579041000,-154.9,0.00024947,7]
[422889730,1779579041000,-857.70184511,0.00025,2]
[422889731,1779579041000,-1565.59192704,0.00025,2]
[422889732,1779579041000,-258.27263183,0.00025,2]
[422889710,1779579041000,-1000.0,0.00024658,2]
[422889702,1779579041000,-1224.0,0.00024242,2]
[422889704,1779579041000,-3546.0,0.00024242,2]
[422889714,1779579041000,-500.0,0.00024661,2]
[422889679,1779579041000,-621.43653195,0.00023688,2]
[422889681,1779579041000,-500.0,0.00023942,2]
[422889690,1779579041000,-170.0,0.00024,2]
[422889688,1779579041000,-178.0,0.00024,2]
[422889691,1779579041000,-443.0,0.00024,2]
[422889705,1779579041000,-625.0,0.00024242,2]
[422889692,1779579041000,-2000.0,0.00024093,7]
[422889699,1779579041000,-200.0,0.00024234,2]
[422889696,1779579041000,-2131.96,0.00024174,2]
[422889701,1779579041000,-1271.0,0.00024242,2]
[422889693,1779579041000,-274.0,0.00024136,2]
[422889689,1779579041000,-454.0,0.00024,2]
[422889700,1779579041000,-2405.55389863,0.00024234,2]
[422889697,1779579041000,-907.82,0.00024174,2]
[422889715,1779579041000,-500.0,0.00024661,2]
[422889712,1779579041000,-154.9,0.00024658,2]
[422889713,1779579041000,-151.71,0.00024658,2]
[422889711,1779579041000,-390.31,0.00024658,2]
[422889677,1779579041000,-200.0,0.00023686,2]
[422889703,1779579041000,-927.0,0.00024242,2]
[422889694,1779579041000,-150.0,0.00024136,2]
[422889698,1779579041000,-35830.5,0.00024174,2]
[422889695,1779579041000,-193.0,0.00024136,2]
[422889742,1779579042000,-11019.78073375,0.00025,2]
[422889741,1779579042000,-1648.56144902,0.00025,2]
[422889739,1779579042000,-479.0,0.00024136,10]
[422889740,1779579042000,-3929.22149816,0.00025,2]
[422889746,1779579043000,-480.53080747,0.00025,2]
[422889747,1779579043000,-535.94538832,0.00025,2]
[422889756,1779579046000,-638.3351,0.00025,2]
[422889755,1779579046000,-1762.22425123,0.00025,2]
[422889754,1779579046000,-8365.93378291,0.00025,2]
[422889753,1779579046000,-2800.96879417,0.00025,2]
[422889752,1779579046000,-1355.0,0.00024242,2]
[422889751,1779579046000,-150.0,0.0002058,2]
[422889772,1779580140000,1000.0,0.00028036,120]
[422889775,1779580232000,-156.7,0.00011626,2]
[422889802,1779580232000,-191.87295522,0.00020313,2]
[422889808,1779580232000,-151.0,0.00020313,2]
[422889805,1779580232000,-206.33422798,0.00020313,2]
[422889810,1779580232000,-151.0,0.00020313,2]
[422889815,1779580232000,-151.0,0.00020313,2]
[422889814,1779580232000,-500.0,0.00020313,2]
[422889819,1779580232000,-151.0,0.00020313,2]
[422889816,1779580232000,-151.0,0.00020313,2]
[422889818,1779580232000,-151.0,0.00020313,2]
[422889813,1779580232000,-151.0,0.00020313,2]
[422889817,1779580232000,-500.0,0.00020313,2]
[422889820,1779580232000,-500.0,0.00020313,2]
[422889807,1779580232000,-213.74032474,0.00020313,2]
[422889812,1779580232000,-1798.80895522,0.00020313,2]
[422889821,1779580232000,-151.0,0.00020313,2]
[422889823,1779580232000,-500.0,0.00020313,2]
[422889824,1779580232000,-151.0,0.00020313,2]
[422889825,1779580232000,-151.0,0.00020313,2]
[422889827,1779580232000,-500.0,0.00020313,2]
[422889836,1779580232000,-500.0,0.00020313,2]
[422889828,1779580232000,-151.0,0.00020313,2]
[422889830,1779580232000,-500.0,0.00020313,2]
[422889829,1779580232000,-151.0,0.00020313,2]
[422889834,1779580232000,-151.0,0.00020313,2]
[422889837,1779580232000,-151.0,0.00020313,2]
[422889835,1779580232000,-151.0,0.00020313,2]
[422889822,1779580232000,-151.0,0.00020313,2]
[422889809,1779580232000,-500.0,0.00020313,2]
[422889804,1779580232000,-151.0,0.00020313,2]
[422889799,1779580232000,-151.0,0.00020313,2]
[422889776,1779580232000,-1200.0,0.00015062,2]
[422889781,1779580232000,-500.0,0.00017836,2]
[422889780,1779580232000,-156.7,0.00017439,2]
[422889777,1779580232000,-215.31523495,0.00015063,2]
[422889778,1779580232000,-154.33,0.00015584,2]
[422889779,1779580232000,-168.12,0.00016712,2]
[422889782,1779580232000,-165.46074299,0.00018,2]
[422889783,1779580232000,-165.46074299,0.000182,2]
[422889784,1779580232000,-165.46074299,0.000184,2]
[422889786,1779580232000,-299.99,0.00018533,4]
[422889796,1779580232000,-151.0,0.0002,2]
[422889785,1779580232000,-1256.1,0.0001841,2]
[422889788,1779580232000,-403.0,0.0002,2]
[422889795,1779580232000,-382.0,0.0002,2]
[422889787,1779580232000,-224.0,0.00019726,2]
[422889791,1779580232000,-261.0,0.0002,2]
[422889794,1779580232000,-60.04375751,0.0002,2]
[422889790,1779580232000,-155.0,0.0002,2]
[422889789,1779580232000,-161.0,0.0002,2]
[422889793,1779580232000,-96.95624249,0.0002,2]
[422889792,1779580232000,-867.0,0.0002,2]
[422889797,1779580232000,-181.0,0.00020312,2]
[422889798,1779580232000,-151.0,0.00020313,2]
[422889800,1779580232000,-200.0,0.00020313,2]
[422889801,1779580232000,-151.0,0.00020313,2]
[422889806,1779580232000,-151.0,0.00020313,2]
[422889803,1779580232000,-198.97225456,0.00020313,2]
[422889774,1779580232000,-154.33,0.00010389,2]
[422889831,1779580232000,-151.0,0.00020313,2]
[422889832,1779580232000,-151.0,0.00020313,2]
[422889839,1779580232000,-500.0,0.00020313,2]
[422889872,1779580232000,-261.0,0.00021,2]
[422889869,1779580232000,-403.0,0.00021,2]
[422889873,1779580232000,-867.0,0.00021,2]
[422889874,1779580232000,-157.0,0.00021,2]
[422889884,1779580232000,-403.0,0.00022,2]
[422889877,1779580232000,-1934.38338736,0.00021409,2]
[422889880,1779580232000,-5000.0,0.00021918,2]
[422889876,1779580232000,-151.0,0.00021,2]
[422889882,1779580232000,-171.56,0.00021918,2]
[422889883,1779580232000,-2005.9555727,0.00021957,2]
[422889878,1779580232000,-506.59901864,0.00021416,7]
[422889879,1779580232000,-500.0,0.000219,2]
[422889881,1779580232000,-1005.42,0.00021918,2]
[422889870,1779580232000,-161.0,0.00021,2]
[422889886,1779580232000,-155.0,0.00022,2]
[422889896,1779580232000,-500.0,0.00022958,2]
[422889888,1779580232000,-867.0,0.00022,2]
[422889889,1779580232000,-158.70563724,0.00022,2]
[422889894,1779580232000,-2080.17592889,0.00022505,2]
[422889890,1779580232000,-382.0,0.00022,2]
[422889887,1779580232000,-261.0,0.00022,2]
[422889893,1779580232000,-1116.79,0.00022466,2]
[422889892,1779580232000,-844.35,0.00022466,2]
[422889895,1779580232000,-269.64240039,0.00022941,2]
[422889891,1779580232000,-1256.1,0.00022353,2]
[422889897,1779580232000,-403.0,0.00023,2]
[422889898,1779580232000,-161.0,0.00023,2]
[422889833,1779580232000,-500.0,0.00020313,2]
[422889885,1779580232000,-161.0,0.00022,2]
[422889871,1779580232000,-155.0,0.00021,2]
[422889875,1779580232000,-382.0,0.00021,2]
[422889867,1779580232000,-1050.01050475,0.00020923,2]
[422889849,1779580232000,-151.0,0.00020313,2]
[422889838,1779580232000,-151.0,0.00020313,2]
[422889840,1779580232000,-151.0,0.00020313,2]
[422889844,1779580232000,-151.0,0.00020313,2]
[422889843,1779580232000,-500.0,0.00020313,2]
[422889842,1779580232000,-151.0,0.00020313,2]
[422889841,1779580232000,-151.0,0.00020313,2]
[422889868,1779580232000,-63838.45945558,0.00020923,2]
[422889847,1779580232000,-151.0,0.00020313,2]
[422889846,1779580232000,-151.0,0.00020313,2]
[422889848,1779580232000,-500.0,0.00020313,2]
[422889850,1779580232000,-151.0,0.00020313,2]
[422889852,1779580232000,-151.0,0.00020313,2]
[422889851,1779580232000,-151.0,0.00020313,2]
[422889845,1779580232000,-500.0,0.00020313,2]
[422889853,1779580232000,-151.0,0.00020313,2]
[422889864,1779580232000,-1833.51726259,0.00020923,2]
[422889854,1779580232000,-1256.1,0.00020381,2]
[422889865,1779580232000,-1564.62421589,0.00020923,2]
[422889863,1779580232000,-4311.1042238,0.00020923,2]
[422889862,1779580232000,-5891.65125703,0.00020923,2]
[422889860,1779580232000,-1578.90028344,0.00020923,2]
[422889866,1779580232000,-1369.51623453,0.00020923,2]
[422889858,1779580232000,-200.0,0.00020861,2]
[422889861,1779580232000,-8173.23656239,0.00020923,2]
[422889856,1779580232000,-154.33,0.00020778,2]
[422889857,1779580232000,-4168.5776,0.00020823,2]
[422889855,1779580232000,-167.65961344,0.0002058,2]
[422889859,1779580232000,-1865.36488656,0.00020861,2]
[422889910,1779580233000,-1865.34339216,0.00023053,2]
[422889900,1779580233000,-261.0,0.00023,2]
[422889921,1779580233000,-749.6440699,0.00023556,2]
[422889911,1779580233000,-156.7,0.00023252,2]
[422889899,1779580233000,-169.0,0.00023,2]
[422889908,1779580233000,-3764.1514368,0.00023041,2]
[422889903,1779580233000,-2171.0,0.00023,2]
[422889904,1779580233000,-500.0,0.0002304,2]
[422889906,1779580233000,-284.23420618,0.0002304,2]
[422889907,1779580233000,-9044.8056281,0.00023041,2]
[422889905,1779580233000,-500.0,0.0002304,2]
[422889909,1779580233000,-2757.1333279,0.00023041,2]
[422889902,1779580233000,-382.0,0.00023,2]
[422889913,1779580233000,-520.64002078,0.00023495,2]
[422889901,1779580233000,-867.0,0.00023,2]
[422889912,1779580233000,-376.78777553,0.00023455,2]
[422889928,1779580233000,-503.8247927,0.00023556,2]
[422889915,1779580233000,-500.0,0.00023555,2]
[422889932,1779580233000,-1855.39247416,0.00023556,2]
[422889929,1779580233000,-7003.82032798,0.00023556,2]
[422889931,1779580233000,-4639.39429941,0.00023556,2]
[422889923,1779580233000,-1497.03480659,0.00023556,2]
[422889926,1779580233000,-1898.12028,0.00023556,2]
[422889927,1779580233000,-354.35040988,0.00023556,2]
[422889925,1779580233000,-5535.49871986,0.00023556,2]
[422889930,1779580233000,-474.16149878,0.00023556,2]
[422889922,1779580233000,-1991.4070198,0.00023556,2]
[422889919,1779580233000,-495.37905734,0.00023556,2]
[422889920,1779580233000,-454.02947525,0.00023556,2]
[422889918,1779580233000,-3564.56946572,0.00023556,2]
[422889917,1779580233000,-82257.32569863,0.00023556,2]
[422889914,1779580233000,-500.0,0.00023554,2]
[422889924,1779580233000,-7047.96809422,0.00023556,2]
[422889916,1779580233000,-640.52338063,0.00023555,2]
[422889933,1779580237000,227.0,0.00028082,120]
[422889938,1779580238000,-20175.42554435,0.00023556,2]
[422889936,1779580238000,-256.86461,0.00023556,2]
[422889935,1779580238000,-151.0,0.00022,2]
[422889937,1779580238000,-773.33800001,0.00023556,2]
[422889945,1779580240000,-7808.86420608,0.00023556,2]
[422889944,1779580240000,-428.53781818,0.00023556,2]
[422889946,1779580240000,-415.10366658,0.00023556,2]
[422889949,1779580240000,-1873.42176908,0.00023556,2]
[422889948,1779580240000,-503.33128176,0.00023556,2]
[422889950,1779580240000,-902.65302674,0.00023556,2]
[422889947,1779580240000,-301.87915129,0.00023556,2]
[422889972,1779580243000,-177.81,0.00024658,2]
[422889976,1779580243000,-500.0,0.00024726,2]
[422889973,1779580243000,-177.53,0.00024658,2]
[422889971,1779580243000,-452.69,0.00024658,2]
[422889980,1779580243000,-500.0,0.00024726,2]
[422889969,1779580243000,-520.64002072,0.00024526,2]
[422889970,1779580243000,-171.56,0.00024658,8]
[422889967,1779580243000,-269.64240033,0.00024034,2]
[422889966,1779580243000,-382.0,0.00024,2]
[422889968,1779580243000,-1256.1,0.00024324,2]
[422889962,1779580243000,-403.0,0.00024,2]
[422889965,1779580243000,-867.0,0.00024,2]
[422889963,1779580243000,-161.0,0.00024,2]
[422889964,1779580243000,-261.0,0.00024,2]
[422889961,1779580243000,-500.0,0.00023962,14]
[422889958,1779580243000,-2057.91544962,0.00023595,2]
[422889977,1779580243000,-500.0,0.00024726,2]
[422889957,1779580243000,-92153.60803571,0.00023556,2]
[422889959,1779580243000,-195.31,0.00023695,2]
[422889974,1779580243000,-500.0,0.00024726,2]
[422889960,1779580243000,-287.24293187,0.00023802,7]
[422889975,1779580243000,-500.0,0.00024726,2]
[422889979,1779580243000,-500.0,0.00024726,2]
[422889997,1779580243000,-222.55260525,0.0002489,2]
[422889999,1779580243000,-461.21871581,0.00024899,2]
[422889996,1779580243000,-177.53,0.00024886,7]
[422889994,1779580243000,-178.0,0.00024886,7]
[422889995,1779580243000,-177.81,0.00024886,7]
[422889991,1779580243000,-500.0,0.00024726,2]
[422889988,1779580243000,-500.0,0.00024726,2]
[422889990,1779580243000,-500.0,0.00024726,2]
[422889989,1779580243000,-500.0,0.00024726,2]
[422889998,1779580243000,-500.0,0.00024899,2]
[422889993,1779580243000,-405.25857282,0.000248,2]
[422889984,1779580243000,-500.0,0.00024726,2]
[422889986,1779580243000,-500.0,0.00024726,2]
[422889985,1779580243000,-500.0,0.00024726,2]
[422889983,1779580243000,-500.0,0.00024726,2]
[422889992,1779580243000,-628.0,0.00024726,2]
[422889978,1779580243000,-500.0,0.00024726,2]
[422889982,1779580243000,-484.68457076,0.00024726,2]
[422889981,1779580243000,-500.0,0.00024726,2]
[422889987,1779580243000,-500.0,0.00024726,2]
[422890001,1779580244000,-82092.46219524,0.000249,2]
[422890000,1779580244000,-318.00196606,0.00024899,2]
[422890053,1779580246000,-4118.3169,0.00020823,2]
[422890054,1779580246000,-382.26604981,0.000249,2]
[422890058,1779580246000,-524.75647056,0.000249,2]
[422890057,1779580246000,-40831.07504,0.000249,2]
[422890055,1779580246000,-1262.7459,0.000249,2]
[422890074,1779581340000,1000.0,0.00028081,120]
[422890085,1779581432000,-300.0,0.00014418,2]
[422890080,1779581432000,-250.0,0.00014,2]